[Event "*** Titled Tuesday 3|2 Blitz (Late)"]
[Site "Chess.com"]
[Date "2017.01.03"]
[Round "4"]
[White "yian123"]
[Black "flubs"]
[Result "1-0"]
[WhiteElo "2380"]
[BlackElo "2235"]
[TimeControl "180+2"]
[EndTime "17:45:05 PST"]
[Termination "yian123 won on time"]

1. e4 {[%clk 0:03:01.9]} 1... c6 {[%clk 0:02:59.8]} 2. Nc3 {[%clk 0:03:01.1]}
2... d5 {[%clk 0:03:00.8]} 3. Nf3 {[%clk 0:03:02.2]} 3... Bg4 {[%clk 0:03:01.6]}
4. h3 {[%clk 0:03:02.7]} 4... Bxf3 {[%clk 0:02:53.9]} 5. Qxf3 {[%clk 0:03:04.6]}
5... e6 {[%clk 0:02:55.4]} 6. d3 {[%clk 0:03:03.6]} 6... Nf6 {[%clk 0:02:55.7]}
7. Qg3 {[%clk 0:03:01.3]} 7... Nbd7 {[%clk 0:02:55]} 8. Be2 {[%clk 0:03:01]}
8... g6 {[%clk 0:02:52.4]} 9. Bf4 {[%clk 0:03:00.9]} 9... Bg7 {[%clk 0:02:45.9]}
10. Bd6 {[%clk 0:02:59.7]} 10... b5 {[%clk 0:02:35.2]} 11. a3 {[%clk 0:02:57.6]}
11... d4 {[%clk 0:02:21.8]} 12. Nb1 {[%clk 0:02:52.6]} 12... Qb6 {[%clk
0:02:17.1]} 13. Nd2 {[%clk 0:02:45.6]} 13... O-O-O {[%clk 0:02:03.2]} 14. b4
{[%clk 0:02:36.2]} 14... h5 {[%clk 0:02:01]} 15. O-O {[%clk 0:02:31]} 15... h4
{[%clk 0:01:56.9]} 16. Qh2 {[%clk 0:02:31.6]} 16... Rhe8 {[%clk 0:01:43]} 17.
Nb3 {[%clk 0:02:16.1]} 17... e5 {[%clk 0:01:38.2]} 18. f4 {[%clk 0:02:15.9]}
18... exf4 {[%clk 0:01:16.9]} 19. Qxf4 {[%clk 0:02:11.6]} 19... Nf8 {[%clk
0:01:06.9]} 20. Bc5 {[%clk 0:02:07.9]} 20... Qc7 {[%clk 0:01:02.2]} 21. Qxh4
{[%clk 0:02:05.7]} 21... g5 {[%clk 0:00:31]} 22. Qxg5 {[%clk 0:01:56.9]} 22...
Ne6 {[%clk 0:00:31.1]} 23. Qf5 {[%clk 0:01:53.8]} 23... Rg8 {[%clk 0:00:22]} 24.
a4 {[%clk 0:01:52.4]} 24... Nd7 {[%clk 0:00:12.9]} 25. axb5 {[%clk 0:01:48.8]}
25... Bh6 {[%clk 0:00:07]} 26. Rxa7 {[%clk 0:01:40.9]} 26... Qg3 {[%clk
0:00:05.4]} 27. Qf3 {[%clk 0:01:35.4]} 27... Nf4 {[%clk 0:00:05.6]} 28. Qxg3
{[%clk 0:01:02.1]} 28... Nxe2+ {[%clk 0:00:06.2]} 29. Kh2 {[%clk 0:01:01.8]}
29... Rxg3 {[%clk 0:00:03.7]} 30. Bd6 {[%clk 0:00:51.8]} 1-0

[Event "*** Titled Tuesday 3|2 Blitz (Late)"]
[Site "Chess.com"]
[Date "2017.01.03"]
[Round "4"]
[White "1random"]
[Black "josiwales"]
[Result "0-1"]
[WhiteElo "1998"]
[BlackElo "2242"]
[TimeControl "180+2"]
[EndTime "17:45:31 PST"]
[Termination "josiwales won by resignation"]

1. Nf3 {[%clk 0:02:50.3]} 1... Nf6 {[%clk 0:02:57.4]} 2. Rg1 {[%clk 0:02:52.2]}
2... d5 {[%clk 0:02:58.3]} 3. d4 {[%clk 0:02:52.9]} 3... c6 {[%clk 0:02:53]} 4.
Ne5 {[%clk 0:02:51.4]} 4... Bf5 {[%clk 0:02:53.1]} 5. g4 {[%clk 0:02:49.1]} 5...
Bg6 {[%clk 0:02:54.3]} 6. h4 {[%clk 0:02:50.1]} 6... h6 {[%clk 0:02:24.6]} 7.
Nxg6 {[%clk 0:02:48.2]} 7... fxg6 {[%clk 0:02:26.5]} 8. Qd3 {[%clk 0:02:49]}
8... Ne4 {[%clk 0:02:25.1]} 9. f3 {[%clk 0:02:47.1]} 9... Qa5+ {[%clk
0:02:20.4]} 10. b4 {[%clk 0:02:40]} 10... Qxb4+ {[%clk 0:02:14.8]} 11. c3 {[%clk
0:02:31.3]} 11... Nxc3 {[%clk 0:02:15.1]} 12. Qxc3 {[%clk 0:02:13.2]} 12... e6
{[%clk 0:02:15.5]} 13. a3 {[%clk 0:02:11.8]} 13... Qd6 {[%clk 0:02:13.5]} 14. f4
{[%clk 0:02:00.4]} 14... Be7 {[%clk 0:02:13.2]} 15. Qg3 {[%clk 0:01:57.1]} 15...
Nd7 {[%clk 0:02:13.5]} 16. g5 {[%clk 0:01:58.2]} 16... hxg5 {[%clk 0:02:10.6]}
17. hxg5 {[%clk 0:02:00.1]} 17... O-O-O {[%clk 0:02:11.1]} 18. Nc3 {[%clk
0:01:45.7]} 18... Nb6 {[%clk 0:01:59.1]} 19. e3 {[%clk 0:01:32.1]} 19... Rdf8
{[%clk 0:01:58.7]} 20. Bd3 {[%clk 0:01:18]} 20... a6 {[%clk 0:01:33.5]} 21. Bxg6
{[%clk 0:01:16.5]} 21... c5 {[%clk 0:01:33.6]} 22. Bd2 {[%clk 0:01:13.8]} 22...
cxd4 {[%clk 0:01:31.7]} 23. exd4 {[%clk 0:01:15.7]} 23... Nc4 {[%clk 0:01:32.1]}
24. Ne2 {[%clk 0:01:01.3]} 24... Kb8 {[%clk 0:01:30.3]} 25. Bb4 {[%clk
0:01:01.1]} 25... Qc7 {[%clk 0:01:26.6]} 26. Bxe7 {[%clk 0:00:59]} 26... Qxe7
{[%clk 0:01:25.5]} 27. Qb3 {[%clk 0:00:58.4]} 27... Rh2 {[%clk 0:01:22]} 28. Bd3
{[%clk 0:00:52.2]} 28... b5 {[%clk 0:01:17.9]} 29. a4 {[%clk 0:00:46.5]} 29...
b4 {[%clk 0:01:07.7]} 30. Bxc4 {[%clk 0:00:46.6]} 30... dxc4 {[%clk 0:01:08.5]}
31. Qxc4 {[%clk 0:00:48.5]} 31... Rc8 {[%clk 0:01:04.6]} 32. Qxa6 {[%clk
0:00:42.5]} 32... Rc2 {[%clk 0:01:03.6]} 33. Qb5+ {[%clk 0:00:35.3]} 33... Ka8
{[%clk 0:01:02.1]} 34. Qa5+ {[%clk 0:00:24]} 34... Kb8 {[%clk 0:01:02.5]} 35.
Qe5+ {[%clk 0:00:23.3]} 35... Kc8 {[%clk 0:00:53.9]} 36. Nc1 {[%clk 0:00:24.6]}
36... b3 {[%clk 0:00:50.4]} 37. Nxb3 {[%clk 0:00:24.8]} 37... Qb4+ {[%clk
0:00:49]} 38. Kd1 {[%clk 0:00:17.8]} 38... Rcd2+ {[%clk 0:00:43.1]} 39. Ke1
{[%clk 0:00:16.6]} 39... Rde2+ {[%clk 0:00:41.9]} 40. Kd1 {[%clk 0:00:15.9]}
40... Qxb3+ {[%clk 0:00:42.6]} 41. Kc1 {[%clk 0:00:16.6]} 0-1

[Event "*** Titled Tuesday 3|2 Blitz (Late)"]
[Site "Chess.com"]
[Date "2017.01.03"]
[Round "4"]
[White "QuintilianoR"]
[Black "simplerXiao"]
[Result "1-0"]
[WhiteElo "2533"]
[BlackElo "2361"]
[TimeControl "180+2"]
[EndTime "17:45:41 PST"]
[Termination "QuintilianoR won by checkmate"]

1. d4 {[%clk 0:03:02]} 1... Nf6 {[%clk 0:02:58.4]} 2. Nf3 {[%clk 0:03:03]} 2...
e6 {[%clk 0:02:58.7]} 3. Bf4 {[%clk 0:03:04]} 3... d5 {[%clk 0:02:57.3]} 4. e3
{[%clk 0:03:04.9]} 4... c5 {[%clk 0:02:58.6]} 5. Nbd2 {[%clk 0:03:05]} 5... Nc6
{[%clk 0:03:00.1]} 6. c3 {[%clk 0:03:06.2]} 6... Be7 {[%clk 0:03:00.9]} 7. h3
{[%clk 0:03:06.8]} 7... O-O {[%clk 0:03:02]} 8. Bb5 {[%clk 0:03:06.4]} 8... a6
{[%clk 0:02:58.8]} 9. Bxc6 {[%clk 0:03:07.2]} 9... bxc6 {[%clk 0:03:00]} 10. O-O
{[%clk 0:03:08.3]} 10... cxd4 {[%clk 0:02:58.8]} 11. exd4 {[%clk 0:03:08.9]}
11... c5 {[%clk 0:02:59.5]} 12. dxc5 {[%clk 0:03:09.1]} 12... Bxc5 {[%clk
0:03:00]} 13. Nb3 {[%clk 0:03:10.2]} 13... Bd6 {[%clk 0:02:59.6]} 14. Bxd6
{[%clk 0:03:10.8]} 14... Qxd6 {[%clk 0:03:00.4]} 15. c4 {[%clk 0:03:12.4]} 15...
Bb7 {[%clk 0:02:59.7]} 16. Re1 {[%clk 0:03:13]} 16... Qb4 {[%clk 0:02:57.4]} 17.
c5 {[%clk 0:03:11.8]} 17... a5 {[%clk 0:02:56.2]} 18. a3 {[%clk 0:03:11.2]}
18... Qa4 {[%clk 0:02:39.8]} 19. Nfd4 {[%clk 0:02:45.3]} 19... Rfc8 {[%clk
0:02:38.9]} 20. Rc1 {[%clk 0:02:42.9]} 20... Ne4 {[%clk 0:02:28.7]} 21. f3
{[%clk 0:02:36.1]} 21... Nf6 {[%clk 0:02:28.5]} 22. Qd2 {[%clk 0:02:31.6]} 22...
Nd7 {[%clk 0:02:19.4]} 23. Kh1 {[%clk 0:02:26.9]} 23... Nb8 {[%clk 0:01:58.9]}
24. f4 {[%clk 0:02:20.1]} 24... Nc6 {[%clk 0:01:56.4]} 25. Nxc6 {[%clk 0:02:21]}
25... Rxc6 {[%clk 0:01:56.7]} 26. Nd4 {[%clk 0:02:20.8]} 26... Rc7 {[%clk
0:01:54]} 27. f5 {[%clk 0:02:18.2]} 27... exf5 {[%clk 0:01:54.8]} 28. Nxf5
{[%clk 0:02:15.6]} 28... h6 {[%clk 0:01:32]} 29. Qc3 {[%clk 0:01:58.4]} 29... f6
{[%clk 0:01:21]} 30. Qg3 {[%clk 0:01:56.6]} 30... Rd7 {[%clk 0:01:06.4]} 31.
Nxh6+ {[%clk 0:01:54.9]} 31... Kh7 {[%clk 0:01:05.5]} 32. Nf5 {[%clk 0:01:53.5]}
32... Kg8 {[%clk 0:00:59.7]} 33. c6 {[%clk 0:01:51.4]} 33... Bxc6 {[%clk
0:00:59.5]} 34. Ne7+ {[%clk 0:01:52.2]} 34... Kf8 {[%clk 0:00:54.3]} 35. Nxc6
{[%clk 0:01:51]} 35... Rc8 {[%clk 0:00:54.8]} 36. Re6 {[%clk 0:01:34.2]} 36...
Kf7 {[%clk 0:00:43]} 37. Rd6 {[%clk 0:01:30]} 37... Rdc7 {[%clk 0:00:41.5]} 38.
Nd8+ {[%clk 0:01:25.8]} 38... Kg8 {[%clk 0:00:33.5]} 39. Rxc7 {[%clk 0:01:26.5]}
39... Rxc7 {[%clk 0:00:34.6]} 40. Ne6 {[%clk 0:01:27.9]} 40... Qd1+ {[%clk
0:00:34.5]} 41. Kh2 {[%clk 0:01:28.4]} 41... Re7 {[%clk 0:00:32]} 42. Rd8+
{[%clk 0:01:25.5]} 42... Kf7 {[%clk 0:00:32.5]} 43. Qd6 {[%clk 0:01:24.4]} 43...
Qe1 {[%clk 0:00:19.5]} 44. Rf8+ {[%clk 0:01:22.5]} 44... Kg6 {[%clk 0:00:20.5]}
45. Nf4+ {[%clk 0:01:20.2]} 45... Kh7 {[%clk 0:00:20.8]} 46. Qd8 {[%clk
0:01:18.8]} 46... Kh6 {[%clk 0:00:19]} 47. Qxd5 {[%clk 0:01:16.7]} 47... Re5
{[%clk 0:00:16.7]} 48. Qf3 {[%clk 0:01:17.3]} 48... Qd2 {[%clk 0:00:14.8]} 49.
Rh8+ {[%clk 0:01:17.5]} 49... Kg5 {[%clk 0:00:15.9]} 50. Rh5# {[%clk 0:01:18.4]}
1-0

[Event "*** Titled Tuesday 3|2 Blitz (Late)"]
[Site "Chess.com"]
[Date "2017.01.03"]
[Round "4"]
[White "Gordima"]
[Black "Buffy7"]
[Result "1-0"]
[WhiteElo "2485"]
[BlackElo "2490"]
[TimeControl "180+2"]
[EndTime "17:46:13 PST"]
[Termination "Gordima won by resignation"]

1. e4 {[%clk 0:03:02]} 1... c5 {[%clk 0:03:00.5]} 2. f4 {[%clk 0:03:02.6]} 2...
Nc6 {[%clk 0:02:58.1]} 3. Nf3 {[%clk 0:03:01.6]} 3... e6 {[%clk 0:02:59.6]} 4.
Bb5 {[%clk 0:02:50.4]} 4... Nge7 {[%clk 0:02:59.8]} 5. d3 {[%clk 0:02:50.1]}
5... a6 {[%clk 0:02:59.3]} 6. Ba4 {[%clk 0:02:51.4]} 6... b5 {[%clk 0:02:56.5]}
7. Bb3 {[%clk 0:02:52.5]} 7... d5 {[%clk 0:02:58.1]} 8. c3 {[%clk 0:02:43.9]}
8... c4 {[%clk 0:02:49.4]} 9. Bc2 {[%clk 0:02:44.4]} 9... cxd3 {[%clk
0:02:38.1]} 10. Bxd3 {[%clk 0:02:45.6]} 10... dxe4 {[%clk 0:02:39.2]} 11. Bxe4
{[%clk 0:02:47.5]} 11... Qxd1+ {[%clk 0:02:40.6]} 12. Kxd1 {[%clk 0:02:48.4]}
12... Bb7 {[%clk 0:02:42.2]} 13. Be3 {[%clk 0:02:46.6]} 13... Rd8+ {[%clk
0:02:37.1]} 14. Nbd2 {[%clk 0:02:45.1]} 14... Nd5 {[%clk 0:02:36.8]} 15. Bxd5
{[%clk 0:02:05.3]} 15... Rxd5 {[%clk 0:02:38.7]} 16. a4 {[%clk 0:02:03.1]} 16...
Be7 {[%clk 0:02:31.5]} 17. axb5 {[%clk 0:02:04.1]} 17... axb5 {[%clk 0:02:33.4]}
18. b4 {[%clk 0:01:55.2]} 18... O-O {[%clk 0:02:19.4]} 19. Kc2 {[%clk
0:01:55.1]} 19... Rc8 {[%clk 0:02:19.7]} 20. Kb2 {[%clk 0:01:28.7]} 20... Bf6
{[%clk 0:02:16.1]} 21. Ne4 {[%clk 0:01:27.5]} 21... Rd3 {[%clk 0:02:13.3]} 22.
Bc5 {[%clk 0:01:22.1]} 22... Be7 {[%clk 0:01:22.3]} 23. Bxe7 {[%clk 0:01:14.7]}
23... Nxe7 {[%clk 0:01:23.4]} 24. Nc5 {[%clk 0:01:15.8]} 24... Bxf3 {[%clk
0:01:23.2]} 25. Nxd3 {[%clk 0:01:15]} 25... Bxg2 {[%clk 0:01:24.3]} 26. Rhg1
{[%clk 0:01:13.4]} 26... Bd5 {[%clk 0:01:23.7]} 27. Ra5 {[%clk 0:00:58.4]} 27...
Rd8 {[%clk 0:01:01.3]} 28. Rxb5 {[%clk 0:00:36.4]} 28... Bc4 {[%clk 0:01:01.9]}
29. Rb7 {[%clk 0:00:37.6]} 29... Ng6 {[%clk 0:00:41.3]} 30. Ne5 {[%clk
0:00:36.3]} 30... Nxe5 {[%clk 0:00:38]} 31. fxe5 {[%clk 0:00:37.5]} 31... h5
{[%clk 0:00:39.7]} 32. Rg2 {[%clk 0:00:36.7]} 32... h4 {[%clk 0:00:40]} 33. Rc7
{[%clk 0:00:35.5]} 33... Bd5 {[%clk 0:00:40.8]} 34. Rd2 {[%clk 0:00:36]} 34...
Ra8 {[%clk 0:00:41.4]} 35. c4 {[%clk 0:00:36.6]} 35... Be4 {[%clk 0:00:41.3]}
36. b5 {[%clk 0:00:37.3]} 36... g5 {[%clk 0:00:40.9]} 37. c5 {[%clk 0:00:38.2]}
37... Ra5 {[%clk 0:00:41.2]} 38. b6 {[%clk 0:00:37.7]} 38... g4 {[%clk
0:00:41.3]} 39. Rd4 {[%clk 0:00:33.4]} 39... Bf3 {[%clk 0:00:37]} 40. b7 {[%clk
0:00:29.5]} 40... Rb5+ {[%clk 0:00:36.3]} 41. Kc3 {[%clk 0:00:30.2]} 41... Bxb7
{[%clk 0:00:31.3]} 42. Rxg4+ {[%clk 0:00:30.1]} 42... Kf8 {[%clk 0:00:30.9]} 43.
Rb4 {[%clk 0:00:31.1]} 1-0

[Event "*** Titled Tuesday 3|2 Blitz (Late)"]
[Site "Chess.com"]
[Date "2017.01.03"]
[Round "4"]
[White "Shivagami"]
[Black "norwaytoadog"]
[Result "0-1"]
[WhiteElo "2042"]
[BlackElo "1956"]
[TimeControl "180+2"]
[EndTime "17:46:14 PST"]
[Termination "norwaytoadog won by checkmate"]

1. d4 {[%clk 0:03:02]} 1... Nf6 {[%clk 0:02:58]} 2. Bf4 {[%clk 0:03:01.9]} 2...
d6 {[%clk 0:02:56.5]} 3. e3 {[%clk 0:03:00.1]} 3... g6 {[%clk 0:02:56.4]} 4. Nf3
{[%clk 0:02:59.2]} 4... Bg7 {[%clk 0:02:56.6]} 5. Be2 {[%clk 0:02:59.2]} 5... b6
{[%clk 0:02:57.3]} 6. h3 {[%clk 0:02:59.9]} 6... Bb7 {[%clk 0:02:57.8]} 7. O-O
{[%clk 0:03:00.6]} 7... O-O {[%clk 0:02:58.3]} 8. Nbd2 {[%clk 0:03:01.5]} 8...
Nbd7 {[%clk 0:02:57.5]} 9. a4 {[%clk 0:03:01]} 9... a5 {[%clk 0:02:53.5]} 10. c3
{[%clk 0:02:54.2]} 10... Re8 {[%clk 0:02:53.6]} 11. Bh2 {[%clk 0:02:45]} 11...
e5 {[%clk 0:02:48.9]} 12. dxe5 {[%clk 0:02:39.1]} 12... dxe5 {[%clk 0:02:48.8]}
13. Nc4 {[%clk 0:02:39.7]} 13... Ne4 {[%clk 0:02:34.8]} 14. Qc2 {[%clk
0:02:26.4]} 14... Qe7 {[%clk 0:02:16]} 15. Rfd1 {[%clk 0:02:13.2]} 15... f6
{[%clk 0:02:07.8]} 16. Na3 {[%clk 0:01:36]} 16... Ndc5 {[%clk 0:01:58.8]} 17.
Bc4+ {[%clk 0:01:16.2]} 17... Kh8 {[%clk 0:01:59]} 18. Nb5 {[%clk 0:01:09.1]}
18... Rad8 {[%clk 0:01:41.1]} 19. Ne1 {[%clk 0:00:38.1]} 19... Nd6 {[%clk
0:01:29.9]} 20. Nxd6 {[%clk 0:00:29]} 20... cxd6 {[%clk 0:01:25.5]} 21. b4
{[%clk 0:00:25.5]} 21... Ne6 {[%clk 0:01:07]} 22. Qb3 {[%clk 0:00:16.7]} 22...
Bc6 {[%clk 0:00:53.5]} 23. bxa5 {[%clk 0:00:16.4]} 23... bxa5 {[%clk 0:00:51]}
24. Qb6 {[%clk 0:00:17.9]} 24... Qc7 {[%clk 0:00:48.9]} 25. Qxc7 {[%clk
0:00:17.5]} 25... Nxc7 {[%clk 0:00:49.6]} 26. Rab1 {[%clk 0:00:19]} 26... d5
{[%clk 0:00:49.5]} 27. Bb3 {[%clk 0:00:19.6]} 27... Na6 {[%clk 0:00:47.8]} 28.
Nd3 {[%clk 0:00:15.5]} 28... Rb8 {[%clk 0:00:47.7]} 29. Bc2 {[%clk 0:00:14]}
29... Bf8 {[%clk 0:00:45]} 30. Rb2 {[%clk 0:00:11.7]} 30... Rxb2 {[%clk
0:00:44.2]} 31. Nxb2 {[%clk 0:00:13.6]} 31... Rb8 {[%clk 0:00:44.1]} 32. Nd3
{[%clk 0:00:14.9]} 32... Kg7 {[%clk 0:00:39.9]} 33. Nxe5 {[%clk 0:00:15.3]}
33... Be8 {[%clk 0:00:31.9]} 34. Nd3 {[%clk 0:00:08.1]} 34... Rc8 {[%clk
0:00:32.1]} 35. Rb1 {[%clk 0:00:05.4]} 35... Rxc3 {[%clk 0:00:31.7]} 36. Rb7+
{[%clk 0:00:06.7]} 36... Kh6 {[%clk 0:00:30.6]} 37. Bb1 {[%clk 0:00:05.6]} 37...
Bc6 {[%clk 0:00:28.1]} 38. Rb6 {[%clk 0:00:04.8]} 38... Nb4 {[%clk 0:00:27.5]}
39. Nxb4 {[%clk 0:00:04.8]} 39... axb4 {[%clk 0:00:25.1]} 40. Ba2 {[%clk
0:00:05.9]} 40... Rc1# {[%clk 0:00:23.8]} 0-1

[Event "*** Titled Tuesday 3|2 Blitz (Late)"]
[Site "Chess.com"]
[Date "2017.01.03"]
[Round "4"]
[White "Hikaru"]
[Black "yurisolo"]
[Result "1-0"]
[WhiteElo "2847"]
[BlackElo "2455"]
[TimeControl "180+2"]
[EndTime "17:46:15 PST"]
[Termination "Hikaru won on time"]

1. c4 {[%clk 0:03:02]} 1... Nf6 {[%clk 0:02:59.6]} 2. g3 {[%clk 0:03:02.6]} 2...
c6 {[%clk 0:02:59.3]} 3. Bg2 {[%clk 0:03:02]} 3... d5 {[%clk 0:03:00.9]} 4. Nf3
{[%clk 0:03:01.4]} 4... dxc4 {[%clk 0:03:01.5]} 5. Na3 {[%clk 0:02:50.7]} 5...
Be6 {[%clk 0:02:50.3]} 6. Ng5 {[%clk 0:02:47.2]} 6... Bd5 {[%clk 0:02:51.2]} 7.
e4 {[%clk 0:02:48.2]} 7... h6 {[%clk 0:02:52.5]} 8. exd5 {[%clk 0:02:49.7]} 8...
hxg5 {[%clk 0:02:53.3]} 9. dxc6 {[%clk 0:02:51.3]} 9... Nxc6 {[%clk 0:02:54.1]}
10. Nxc4 {[%clk 0:02:50.2]} 10... e6 {[%clk 0:02:53.9]} 11. O-O {[%clk
0:02:49.9]} 11... Bc5 {[%clk 0:02:47.6]} 12. d4 {[%clk 0:02:47.9]} 12... Qxd4
{[%clk 0:02:37.6]} 13. Bxc6+ {[%clk 0:02:46.6]} 13... bxc6 {[%clk 0:02:37.9]}
14. Qxd4 {[%clk 0:02:48.5]} 14... Bxd4 {[%clk 0:02:38.5]} 15. Bxg5 {[%clk
0:02:50.2]} 15... Ke7 {[%clk 0:02:30.4]} 16. Rfd1 {[%clk 0:02:47.3]} 16... c5
{[%clk 0:02:31.2]} 17. Rac1 {[%clk 0:02:44.9]} 17... Rad8 {[%clk 0:02:25.5]} 18.
b4 {[%clk 0:02:40.8]} 18... Rd5 {[%clk 0:02:01.5]} 19. h4 {[%clk 0:02:26.8]}
19... Rhd8 {[%clk 0:01:50.6]} 20. Kg2 {[%clk 0:02:02.4]} 20... cxb4 {[%clk
0:01:44.7]} 21. Rd3 {[%clk 0:01:53]} 21... e5 {[%clk 0:01:17.1]} 22. Bd2 {[%clk
0:01:39.9]} 22... Bc5 {[%clk 0:01:08.8]} 23. Rb3 {[%clk 0:01:39.4]} 23... Ne4
{[%clk 0:01:01.6]} 24. Bxb4 {[%clk 0:01:37.7]} 24... Bxb4 {[%clk 0:00:59.4]} 25.
Rxb4 {[%clk 0:01:39.6]} 25... R8d7 {[%clk 0:00:57.9]} 26. Ne3 {[%clk 0:01:34.7]}
26... Rc5 {[%clk 0:00:53.3]} 27. Re1 {[%clk 0:01:28.3]} 27... Nc3 {[%clk
0:00:47.2]} 28. Rb2 {[%clk 0:01:15.5]} 28... f6 {[%clk 0:00:47.4]} 29. Rc2
{[%clk 0:01:11.4]} 29... Na4 {[%clk 0:00:42.6]} 30. Rce2 {[%clk 0:01:10.4]}
30... Kf7 {[%clk 0:00:42.3]} 31. h5 {[%clk 0:01:09.4]} 31... Nc3 {[%clk
0:00:41.1]} 32. Rb2 {[%clk 0:01:09.4]} 32... Rb5 {[%clk 0:00:39]} 33. Rc2 {[%clk
0:01:10.3]} 33... Nd5 {[%clk 0:00:38]} 34. Nf5 {[%clk 0:01:11.5]} 34... Nb4
{[%clk 0:00:35.2]} 35. Rc8 {[%clk 0:01:08.5]} 35... Nxa2 {[%clk 0:00:30.7]} 36.
Re4 {[%clk 0:01:08]} 36... Rb4 {[%clk 0:00:24.4]} 37. Re2 {[%clk 0:01:08.7]}
37... Ra4 {[%clk 0:00:23]} 38. Rec2 {[%clk 0:01:04.7]} 38... Ke6 {[%clk
0:00:21.5]} 39. Ne3 {[%clk 0:01:03.5]} 39... a5 {[%clk 0:00:21.3]} 40. R2c6+
{[%clk 0:01:04.2]} 40... Kf7 {[%clk 0:00:21.3]} 41. Nf5 {[%clk 0:01:05.5]} 41...
Nb4 {[%clk 0:00:22.3]} 42. R6c7 {[%clk 0:01:04]} 42... Rxc7 {[%clk 0:00:10.1]}
43. Rxc7+ {[%clk 0:01:05.9]} 43... Kf8 {[%clk 0:00:10.8]} 44. Rxg7 {[%clk
0:01:04.6]} 44... Nd3 {[%clk 0:00:05.9]} 45. h6 {[%clk 0:01:04.9]} 45... Ne1+
{[%clk 0:00:03]} 46. Kh3 {[%clk 0:00:49.7]} 1-0

[Event "*** Titled Tuesday 3|2 Blitz (Late)"]
[Site "Chess.com"]
[Date "2017.01.03"]
[Round "4"]
[White "MrReinberg"]
[Black "avto24"]
[Result "1-0"]
[WhiteElo "2275"]
[BlackElo "2334"]
[TimeControl "180+2"]
[EndTime "17:46:26 PST"]
[Termination "MrReinberg won by resignation"]

1. e4 {[%clk 0:02:57.2]} 1... e5 {[%clk 0:02:50.9]} 2. Nf3 {[%clk 0:02:56.6]}
2... Nc6 {[%clk 0:02:52.4]} 3. Nc3 {[%clk 0:02:57.3]} 3... Nf6 {[%clk
0:02:49.6]} 4. a3 {[%clk 0:02:56.8]} 4... d5 {[%clk 0:02:47.6]} 5. Bb5 {[%clk
0:02:57.1]} 5... d4 {[%clk 0:02:43.8]} 6. Ne2 {[%clk 0:02:57.8]} 6... Bd7 {[%clk
0:02:41.3]} 7. d3 {[%clk 0:02:58.5]} 7... Bd6 {[%clk 0:02:41.1]} 8. O-O {[%clk
0:02:59.2]} 8... O-O {[%clk 0:02:42]} 9. Ng3 {[%clk 0:02:56.3]} 9... Re8 {[%clk
0:02:37.9]} 10. Bg5 {[%clk 0:02:52.9]} 10... h6 {[%clk 0:02:36.9]} 11. Bd2
{[%clk 0:02:45]} 11... a6 {[%clk 0:02:35.5]} 12. Bc4 {[%clk 0:02:45.6]} 12... b5
{[%clk 0:02:34.5]} 13. Ba2 {[%clk 0:02:46.1]} 13... Bf8 {[%clk 0:02:34.6]} 14.
Nh4 {[%clk 0:02:42.3]} 14... g6 {[%clk 0:02:31.7]} 15. Nxg6 {[%clk 0:02:39.3]}
15... Bg7 {[%clk 0:02:32.5]} 16. Nh4 {[%clk 0:02:36.5]} 16... Nxe4 {[%clk
0:02:27]} 17. Qh5 {[%clk 0:02:24.8]} 17... Nxd2 {[%clk 0:02:23.8]} 18. Qxf7+
{[%clk 0:02:16.9]} 18... Kh7 {[%clk 0:02:21]} 19. Ngf5 {[%clk 0:02:13]} 19...
Qf6 {[%clk 0:01:49.9]} 20. Qxd7 {[%clk 0:02:12.3]} 20... Nxf1 {[%clk 0:01:50.6]}
21. Nxg7 {[%clk 0:02:07.6]} 21... Re7 {[%clk 0:01:47.6]} 22. Qf5+ {[%clk
0:01:46.7]} 22... Qxf5 {[%clk 0:01:47.3]} 23. Ngxf5 {[%clk 0:01:48.6]} 23... Rd7
{[%clk 0:01:42.2]} 24. Rxf1 {[%clk 0:01:45.9]} 24... Re8 {[%clk 0:01:42.8]} 25.
f4 {[%clk 0:01:39.6]} 25... e4 {[%clk 0:01:43]} 26. dxe4 {[%clk 0:01:36.5]}
26... Rxe4 {[%clk 0:01:43.2]} 27. Ng3 {[%clk 0:01:36.9]} 27... Re3 {[%clk
0:01:41.8]} 28. f5 {[%clk 0:01:36.3]} 28... Ne5 {[%clk 0:01:29.8]} 29. f6 {[%clk
0:01:36.2]} 29... Nf7 {[%clk 0:01:27.7]} 30. Nhf5 {[%clk 0:01:31]} 30... Re5
{[%clk 0:01:28.2]} 31. Nxd4 {[%clk 0:01:26.5]} 31... c5 {[%clk 0:01:27.6]} 32.
Ne6 {[%clk 0:01:23.9]} 32... Rd2 {[%clk 0:01:19.4]} 33. Nxc5 {[%clk 0:01:09.3]}
33... Rxc5 {[%clk 0:01:15.5]} 34. Ne4 {[%clk 0:00:48]} 34... Rcd5 {[%clk
0:00:30.3]} 35. Nxd2 {[%clk 0:00:43.3]} 35... Rd7 {[%clk 0:00:29.9]} 36. Bxf7
{[%clk 0:00:43.2]} 36... Rxf7 {[%clk 0:00:30.4]} 37. Ne4 {[%clk 0:00:44.3]}
37... Kg8 {[%clk 0:00:31.2]} 38. Nd6 {[%clk 0:00:42.9]} 38... Rd7 {[%clk
0:00:32.6]} 39. f7+ {[%clk 0:00:43.2]} 39... Kf8 {[%clk 0:00:33.9]} 40. Rf6
{[%clk 0:00:40.8]} 40... h5 {[%clk 0:00:25.6]} 41. b3 {[%clk 0:00:40.9]} 41...
h4 {[%clk 0:00:20.8]} 42. c4 {[%clk 0:00:41.5]} 42... bxc4 {[%clk 0:00:21.3]}
43. bxc4 {[%clk 0:00:43.4]} 43... a5 {[%clk 0:00:22.9]} 44. Re6 {[%clk
0:00:40.2]} 44... Re7 {[%clk 0:00:23.3]} 45. Rxe7 {[%clk 0:00:40]} 45... Kxe7
{[%clk 0:00:25.2]} 46. c5 {[%clk 0:00:41.3]} 46... a4 {[%clk 0:00:25]} 47. g4
{[%clk 0:00:41.3]} 47... hxg3 {[%clk 0:00:24.9]} 48. h4 {[%clk 0:00:41.1]} 48...
Kf8 {[%clk 0:00:26.8]} 49. c6 {[%clk 0:00:41.3]} 49... Kg7 {[%clk 0:00:28.7]}
50. c7 {[%clk 0:00:42.2]} 50... Kh7 {[%clk 0:00:29.1]} 51. f8=Q {[%clk
0:00:41.4]} 51... Kg6 {[%clk 0:00:31]} 52. Qf7+ {[%clk 0:00:41.5]} 1-0